[Event "Biel Challengers Blitz 2024"]
[White "Salem,A.R. Saleh"]
[Black "Samunenkov,Ihor"]
[Site "Biel"]
[Round "1.1"]
[Annotator "RC"]
[Result "1-0"]
[Date "2024.07.21"]
[WhiteElo "2638"]
[BlackElo "2532"]
[PlyCount "101"]
[TimeControl "180+2"]

1. d4 {[%emt 0:0:1]} d5 {[%emt 0:0:3]} 2. c4 {[%emt 0:0:2]} c6 {[%emt 0:0:1]} 3. Nf3 {[%emt 0:0:1]} Nf6 {[%emt 0:0:2]} 4. Nc3 {[%emt 0:0:2]} e6 {[%emt 0:0:1]} 5. g3 {[%emt 0:0:2]} Be7 {[%emt 0:0:3]} 6. Bg2 {[%emt 0:0:1]} O-O {[%emt 0:0:2]} 7. O-O {[%emt 0:0:2]} a5 {[%emt 0:0:1]} 8. b3 {[%emt 0:0:1]} b6 {[%emt 0:0:2]} 9. Nd2 {[%emt 0:0:10]} Ba6 {[%emt 0:0:10]} 10. a4 {[%emt 0:0:23]} Bb4 {[%emt 0:0:26]} 11. Bb2 {[%emt 0:0:1]} Nbd7 {[%emt 0:0:15]} 12. e4 {[%emt 0:0:1]} c5 {[%emt 0:0:25]} 13. exd5 {[%emt 0:0:14]} cxd4 {[%emt 0:0:11]} 14. Nb5 {[%emt 0:0:1]} exd5 {[%emt 0:0:11]} 15. Nxd4 {[%emt 0:0:8]} Rc8 {[%emt 0:0:10]} 16. cxd5 {[%emt 0:0:23]} Bxf1 {[%emt 0:0:16]} 17. Nxf1 {[%emt 0:0:1]} Ne5 {[%emt 0:0:16]} 18. Nf5 {[%emt 0:0:15]} Bc3 {[%emt 0:0:9]} 19. Bxc3 {[%emt 0:0:0]} Rxc3 {[%emt 0:0:1]} 20. Qd4 {[%emt 0:0:1]} Nf3+ {[%emt 0:0:2]} 21. Bxf3 {[%emt 0:0:1]} Rxf3 {[%emt 0:0:1]} 22. N1e3 {[%emt 0:0:2]} Re8 {[%emt 0:0:12]} 23. d6 {[%emt 0:0:1]} g6 {[%emt 0:0:10]} 24. Nh4 {[%emt 0:0:31]} Rfxe3 {[%emt 0:0:3]} 25. fxe3 {[%emt 0:0:1]} Ne4 {[%emt 0:0:7]} 26. Rd1 {[%emt 0:0:5]} Qd7 {[%emt 0:0:15]} 27. Nf3 {[%emt 0:0:1]} Re6 {[%emt 0:0:9]} 28. Ne5 {[%emt 0:0:6]} Qxd6 {[%emt 0:0:0]} 29. Nc4 {[%emt 0:0:13]} Qe7 {[%emt 0:0:3]} 30. Nxb6 {[%emt 0:0:6]} Nf6 {[%emt 0:0:4]} 31. Qd8+ {[%emt 0:0:2]} Qxd8 {[%emt 0:0:1]} 32. Rxd8+ {[%emt 0:0:1]} Kg7 {[%emt 0:0:1]} 33. Nc4 {[%emt 0:0:0]} Ng4 {[%emt 0:0:15]} 34. Rd3 {[%emt 0:0:12]} Ne5 {[%emt 0:0:0]} 35. Nxe5 {[%emt 0:0:2]} Rxe5 {[%emt 0:0:0]} 36. Kf2 {[%emt 0:0:1]} f5 {[%emt 0:0:0]} 37. Rd7+ {[%emt 0:0:5]} Kh6 {[%emt 0:0:0]} 38. h4 {[%emt 0:0:2]} Rc5 {[%emt 0:0:4]} 39. Rb7 {[%emt 0:0:2]} Rc2+ {[%emt 0:0:3]} 40. Kf3 {[%emt 0:0:0]} Rb2 {[%emt 0:0:1]} 41. e4 {[%emt 0:0:7]} fxe4+ {[%emt 0:0:2]} 42. Kxe4 {[%emt 0:0:0]} Re2+ {[%emt 0:0:4]} 43. Kf3 {[%emt 0:0:3]} Rc2 {[%emt 0:0:2]} 44. g4 {[%emt 0:0:2]} g5 {[%emt 0:0:2]} 45. Rb6+ {[%emt 0:0:1]} Kg7 {[%emt 0:0:1]} 46. hxg5 {[%emt 0:0:1]} Rc1 {[%emt 0:0:3]} 47. Rb5 {[%emt 0:0:2]} Rb1 {[%emt 0:0:3]} 48. Kf4 {[%emt 0:0:2]} Rf1+ {[%emt 0:0:2]} 49. Ke4 {[%emt 0:0:2]} Re1+ {[%emt 0:0:1]} 50. Kd3 {[%emt 0:0:2]} Rb1 {[%emt 0:0:3]} 51. Ke4 {[%emt 0:0:6]} 1-0

[Event "Biel Challengers Blitz 2024"]
[White "Donchenko,Alexander"]
[Black "Vaishali,Rameshbabu"]
[Site "Biel"]
[Round "1.2"]
[Annotator "TA"]
[Result "1-0"]
[Date "2024.07.21"]
[WhiteElo "2639"]
[BlackElo "2489"]
[PlyCount "71"]
[TimeControl "180+2"]

{[%evp 14,71,44,50,82,76,77,81,71,89,111,43,31,36,101,59,75,66,66,60,83,83,85,17,42,30,70,79,216,236,262,264,376,320,343,349,355,342,663,441,476,449,489,476,602,598,554,535,556,553,535,523,866,510,1282,1007,29997,5809,29998,29999]} 1. c4 {[%emt 0:0:1]} Nf6 {[%emt 0:0:2]} 2. g3 {[%emt 0:0:1]} c5 {[%emt 0:0:2]} 3. Bg2 {[%emt 0:0:1]} e6 {[%emt 0:0:6]} 4. Nf3 {[%emt 0:0:1]} Nc6 {[%emt 0:0:5]} 5. O-O {[%emt 0:0:2]} b6 {[%emt 0:0:19]} 6. d4 {[%emt 0:0:1]} cxd4 {[%emt 0:0:1]} 7. Nxd4 {[%emt 0:0:2]} Bb7 {[%emt 0:0:1]} 8. Nc3 {[%emt 0:0:3]} Rc8 {[%emt 0:0:7]} 9. Ndb5 {[%emt 0:0:15]} a6 {[%emt 0:0:49]} 10. Nd6+ {[%emt 0:0:7]} Bxd6 {[%emt 0:0:1] Weiß steht besser.} 11. Qxd6 {[%emt 0:0:1]} Qe7 {[%emt 0:0:1]} 12. Bf4 {[%emt 0:0:5] Weiß steht deutlich aktiver.} (12. Qxe7+ $16 Kxe7 13. Bd2 )Qxd6 $1 $14 {[%emt 0:0:16]} 13. Bxd6 {[%emt 0:0:1]} Na5 {[%emt 0:0:1]} (13... Nd8 $14 )14. b3 {[%emt 0:0:16]} Bxg2 $1 {[%emt 0:0:3]} 15. Kxg2 {[%emt 0:0:1]} Nb7 {[%emt 0:0:12]} 16. Ba3 {[%emt 0:0:2]} d5 {[%emt 0:0:24]} 17. Na4 {[%emt 0:0:29][%cal Bc3a4,Ba4b2,Bb2d3,Bd3e5][%mdl 32]} b5 {[%emt 0:0:6] [#]} 18. cxb5 {[%emt 0:0:1]} (18. Nb2 $1 $16 )axb5 $11 {[%emt 0:0:1]} 19. Nb2 {[%emt 0:0:1]} Kd7 {[%emt 0:0:10]} 20. Nd3 {[%emt 0:0:1] Ne5+ wäre nun fies.} Ne4 {[%emt 0:0:36] Das Aus für Schwarz.} (20... Rhd8 $16 )21. Ne5+ $18 {[%emt 0:0:12]} Ke8 {[%emt 0:0:1]} 22. Rfc1 {[%emt 0:0:1][%cal Bf1c1,Bc1c7,Bc7b7][%mdl 32]} Ra8 {[%emt 0:0:13]} (22... Nc3 $142 23. Bb4 d4 )23. Rc7 {[%emt 0:0:10][%csl LRb7,LRf7]} Rxa3 {[%emt 0:0:6]} 24. Rxb7 {[%emt 0:0:1]} Ra8 {[%emt 0:0:3] Gegen Rb8+ gerichtet.} 25. Rc1 {[%emt 0:0:9]} (25. Nxf7 Rf8 26. f3 Rxf7 $14 )(25. Rxb5 f6 $18 )(25. Rxf7 Rf8 26. Rxf8+ (26. Rxg7 Rxf2+ 27. Kh1 Kf8 $11 )Kxf8 $16 )f6 $2 {[%emt 0:0:1]} (25... Nd6 26. Rd7 f6 27. Rxd6 fxe5 )26. Nd3 {[%emt 0:0:6]} h5 {[%emt 0:0:3]} 27. Nf4 {[%emt 0:0:13] [#] Und jetzt Rcc7 wäre schön.} ({Viel schwächer ist} 27. Rxb5 Kd8 28. Rb6 h4 $18 )Nd6 {[%emt 0:0:2]} 28. Rxg7 {[%emt 0:0:6]} e5 {[%emt 0:0:0]} 29. Nxd5 {[%emt 0:0:2]} Kf8 {[%emt 0:0:2]} 30. Rd7 {[%emt 0:0:4]} Ne8 {[%emt 0:0:1]} 31. h4 {[%emt 0:0:8]} Rg8 {[%emt 0:0:2]} 32. Rc6 {[%emt 0:0:15]} f5 {[%emt 0:0:1]} 33. Re6 {[%emt 0:0:13]} e4 {[%emt 0:0:3]} (33... Rg7 $142 34. Rxg7 (34. Ne7 b4 $18 )Nxg7 )34. Re5 {[%emt 0:0:10]} Ng7 {[%emt 0:0:3]} 35. Nf6 {[%emt 0:0:3]} (35. Ree7 $142 Ne6 36. Rf7+ Ke8 37. Nf6# )Rh8 {[%emt 0:0:3]} 36. Ree7 {[%emt 0:0:1] Gewichteter Fehlerwert: Weiß=0.43/Schwarz=0.70.  Fehler:       	Weiß=2     	Schwarz=5     Ungenau:       	Weiß=3     	Schwarz=3     OK:         	Weiß=10    	Schwarz=5     Bester:       	Weiß=3     	Schwarz=2     Stark:        	---       	Schwarz=2} 1-0

[Event "Biel Challengers Blitz 2024"]
[White "Bjerre,Jonas Buhl"]
[Black "Maurizzi,Marc`Andria"]
[Site "Biel"]
[Round "1.3"]
[Annotator "TA"]
[Result "0-1"]
[Date "2024.07.21"]
[WhiteElo "2653"]
[BlackElo "2610"]
[PlyCount "64"]
[TimeControl "180+2"]

{[%evp 14,64,33,24,29,30,30,31,34,19,64,63,58,29,161,72,167,93,90,92,95,87,102,98,102,97,157,105,91,-141,-161,-145,-149,-164,-156,-198,-73,-176,-177,-167,-153,-227,-173,-1339,-1199,-1439,-1349,-4902,-4994,-5203,-4902,-5485,-756]} 1. Nf3 {[%emt 0:0:1]} Nf6 {[%emt 0:0:2]} 2. c4 {[%emt 0:0:2]} e6 {[%emt 0:0:1]} 3. g3 {[%emt 0:0:1]} d5 {[%emt 0:0:1]} 4. Bg2 {[%emt 0:0:1]} Be7 {[%emt 0:0:1]} 5. O-O {[%emt 0:0:2]} O-O {[%emt 0:0:2]} 6. b3 {[%emt 0:0:1]} c5 {[%emt 0:0:2]} 7. cxd5 {[%emt 0:0:2]} exd5 {[%emt 0:0:1]} 8. d4 {[%emt 0:0:7]} Ne4 {[%emt 0:0:5]} 9. Bb2 {[%emt 0:0:13]} Bf6 {[%emt 0:0:1]} 10. Qc1 {[%emt 0:0:13]} cxd4 {[%emt 0:0:7] White is slightly better.} 11. Nxd4 {[%emt 0:0:13]} Nc6 {[%emt 0:0:1]} 12. Nxc6 {[%emt 0:0:5]} bxc6 {[%emt 0:0:1]} 13. Nd2 {[%emt 0:0:4]} (13. Bxe4 {simplifies} dxe4 14. Bxf6 Qxf6 15. Nc3 )Bg5 {[%emt 0:1:4]} (13... Bxb2 $11 14. Qxb2 Nf6 )14. e3 {[%emt 0:0:3]} (14. Qxc6 $18 Bf5 (14... Bd7 15. Qxd5 Nxd2 16. Qd4 $18 )15. Nxe4 dxe4 16. Qa4 (16. Bxe4 Rc8 $18 ))Ba6 {[%emt 0:0:1]} (14... Nxd2 $16 15. Qxd2 Bf6 )15. Re1 {[%emt 0:0:21]} (15. Rd1 $18 Nd6 16. Qxc6 )Nxd2 $16 {[%emt 0:0:4]} 16. Qxd2 {[%emt 0:0:2]} Re8 {[%emt 0:0:7]} 17. Rac1 {[%emt 0:0:3]} Rc8 {[%emt 0:0:0]} 18. Bd4 {[%emt 0:0:6]} Qd7 {[%emt 0:0:20]} 19. Qa5 {[%emt 0:0:6]} Qb7 {[%emt 0:0:1] [#]} ({Better is} 19... Bb7 20. Red1 (20. Bxa7 Ra8 $11 )Be7 )20. h4 {[%emt 0:0:9]} (20. Bh3 $142 $1 )Be7 {[%emt 0:0:1]} 21. e4 $2 {[%emt 0:0:16]} (21. a3 $16 {and life is bright.} )Bb4 $17 {[%emt 0:0:5]} 22. Qa4 {[%emt 0:0:10]} Bxe1 {[%emt 0:0:3]} 23. Rxe1 {[%emt 0:0:1]} dxe4 {[%emt 0:0:13]} 24. Rxe4 {[%emt 0:0:9]} Bb5 {[%emt 0:0:15]} (24... Rxe4 $19 {is more deadly.} 25. Bxe4 Qb5 26. Qxb5 Bxb5 (26... cxb5 $2 27. Bxa7 Rc1+ 28. Kg2 $17 )27. Bxa7 Re8 (27... Ra8 $2 28. Bc5 $19 ))25. Qb4 {[%emt 0:0:6]} (25. Rxe8+ $17 Rxe8 26. Qa5 )Rxe4 $19 {[%emt 0:0:9]} 26. Bxe4 {[%emt 0:0:1] This pair of bishops is nice.} Re8 {[%emt 0:0:5]} 27. Bc3 {[%emt 0:0:15]} (27. Bc5 $17 {is a better defense.} )Qd7 {[%emt 0:0:20][%cal Oc6c5] aiming for ...c5!} 28. Kh2 $2 {[%emt 0:0:10] [#]} (28. Bg2 )c5 $1 {[%emt 0:0:15] Black is clearly winning.} 29. Qxc5 {[%emt 0:0:21]} (29. Bxh7+ Kxh7 )Rxe4 {[%emt 0:0:2]} 30. Qg5 {[%emt 0:0:2] [#]} f6 $1 {[%emt 0:0:14]} 31. Qc5 {[%emt 0:0:2]} Re8 {[%emt 0:0:5] ( -> ...Bf1)} 32. h5 {[%emt 0:0:2]} Bc6 {[%emt 0:0:2] Weighted Error Value: White=1.21/Black=0.24 (precise) .  Mistake:       	White=7     	Black=4      Inaccurate:     	White=1     	Black=1      OK:         	White=6     	Black=7      Best:        	---       	Black=2      Brilliant:      	---       	Black=1} 0-1

[Event "Biel Challengers Blitz 2024"]
[White "Samunenkov,Ihor"]
[Black "Maurizzi,Marc`Andria"]
[Site "Biel"]
[Round "2.1"]
[Annotator "TA"]
[Result "0-1"]
[Date "2024.07.21"]
[WhiteElo "2532"]
[BlackElo "2610"]
[PlyCount "98"]
[TimeControl "180+2"]

{[%evp 55,97,-76,-83,-230,-203,-351,-208,-283,-282,-280,-25,-22,-23,-23,-31,-53,0,0,1538,1484,1443,-14,-8,-114,-43,-443,-440,-440,-446,-446,-446,-438,-422,-381,-398,-393,-379,-316,-64,-29982,-29983,-29983,-29984,-29999]} 1. d4 {[%emt 0:0:2]} Nf6 {[%emt 0:0:2]} 2. c4 {[%emt 0:0:1]} b6 {[%emt 0:0:6]} 3. Nf3 {[%emt 0:0:7]} Bb7 {[%emt 0:0:1]} 4. g3 {[%emt 0:0:2]} e6 {[%emt 0:0:5]} 5. Bg2 {[%emt 0:0:1]} Bb4+ {[%emt 0:0:1]} 6. Bd2 {[%emt 0:0:2]} Bxd2+ {[%emt 0:0:3]} 7. Qxd2 {[%emt 0:0:2]} O-O {[%emt 0:0:1]} 8. O-O {[%emt 0:0:3]} d6 {[%emt 0:0:3]} 9. Rd1 {[%emt 0:0:5]} Nbd7 {[%emt 0:0:2]} 10. Qc2 {[%emt 0:0:4]} Be4 {[%emt 0:0:1]} 11. Qb3 {[%emt 0:0:2]} a6 {[%emt 0:0:10]} 12. Nc3 {[%emt 0:0:6]} Bb7 {[%emt 0:0:1]} 13. Qc2 {[%emt 0:0:7]} Qe7 {[%emt 0:0:2]} 14. e4 {[%emt 0:0:20]} Ne8 {[%emt 0:0:19]} 15. b3 {[%emt 0:0:9]} c5 {[%emt 0:0:7]} 16. Rd2 {[%emt 0:0:6]} cxd4 {[%emt 0:0:5]} 17. Nxd4 {[%emt 0:0:4]} Rc8 {[%emt 0:0:2]} 18. Rad1 {[%emt 0:0:6]} Nef6 {[%emt 0:0:20]} 19. a4 {[%emt 0:0:3]} Nc5 {[%emt 0:0:5]} 20. Re1 {[%emt 0:0:6]} Rfd8 {[%emt 0:0:6]} 21. Qa2 {[%emt 0:0:6]} g6 {[%emt 0:0:5]} 22. h3 {[%emt 0:0:18]} h5 {[%emt 0:0:3]} 23. h4 {[%emt 0:0:20]} Ng4 {[%emt 0:0:4]} 24. a5 {[%emt 0:0:5]} bxa5 {[%emt 0:0:2]} 25. Nc2 {[%emt 0:0:16]} g5 {[%emt 0:0:12]} 26. hxg5 {[%emt 0:0:7]} Qxg5 {[%emt 0:0:1]} 27. Ne3 {[%emt 0:0:5]} a4 {[%emt 0:0:22]} 28. bxa4 {[%emt 0:0:12]} (28. Nxg4 $2 axb3 $19 (28... Qxg4 29. Nxa4 h4 30. Re3 $14 )(28... Qxg4 29. Nxa4 h4 30. Re3 $14 ))(28. Nxa4 $11 Nf6 (28... Nxe4 29. Bxe4 Bxe4 30. Nxg4 $11 )(28... Bxe4 $2 29. Nxc5 Bxg2 30. Nxe6 $16 )29. Nxc5 dxc5 30. Nf1 )Ne5 {[%emt 0:0:10]} 29. Red1 {[%emt 0:0:8]} (29. Qb1 $17 {keeps fighting.} )h4 $19 {[%emt 0:0:2]} 30. gxh4 {[%emt 0:0:8]} (30. Nf1 $142 Qh5 31. Nh2 )Qxh4 {[%emt 0:0:1]} (30... Nf3+ $142 31. Kf1 Nxd2+ (31... Nxh4 $2 32. Rxd6 Rxd6 33. Rxd6 $19 )32. Qxd2 Qxh4 )31. Rxd6 {[%emt 0:0:2]} Rxd6 {[%emt 0:0:3]} (31... Nxe4 $2 32. Rxd8+ Rxd8 33. Rxd8+ Qxd8 34. Nxe4 $18 )32. Rxd6 {[%emt 0:0:2]} Nxe4 $2 {[%emt 0:0:26]} (32... Bxe4 33. Nxe4 Nxe4 34. Rd4 $15 )(32... Ncd3 $19 {...Nf4 would now be deadly.} 33. a5 Kh7 34. Rxd3 Nxd3 )33. Nxe4 {[%emt 0:0:3]} Bxe4 {[%emt 0:0:1]} 34. Rd4 {[%emt 0:0:1]} f5 {[%emt 0:0:1]} 35. c5 {[%emt 0:0:8]} Kf7 {[%emt 0:0:11]} (35... Rxc5 $6 36. Qxe6+ Kf8 37. Qd6+ (37. Qxa6 Rc1+ 38. Rd1 Rxd1+ 39. Nxd1 Bxg2 $11 )Qe7 38. Qxe7+ (38. Qxa6 Nf3+ 39. Bxf3 Qg7+ $11 )Kxe7 39. Bxe4 fxe4 40. Rxe4 $16 )({Black should play} 35... Qh6 $1 $15 36. Bxe4 fxe4 37. Rxe4 Kf7 )36. Nxf5 $1 $11 {[%emt 0:0:8]} Nf3+ $2 {[%emt 0:0:1][%mdl 8192]} (36... Qg5 $11 37. Rxe4 (37. Nd6+ Kg7 $11 )Qxf5 )37. Bxf3 $18 {[%emt 0:0:6]} Qg5+ {[%emt 0:0:0] [#]} 38. Kf1 $2 {[%emt 0:0:14]} (38. Ng3 $1 $18 {White threatens Rd7+ and mate.} Bxf3 39. Rd7+ Kg8 40. Qxe6+ Kh8 41. Rf7 (41. Qxa6 Rxc5 $11 )(41. Qh3+ Bh5 $18 )Rxc5 42. Rxf3 )Bxf3 $11 {[%emt 0:0:4]} 39. Nd6+ {[%emt 0:0:2]} (39. Rd7+ $1 $11 Kf8 (39... Kf6 $2 40. Qb2+ e5 41. Ne3 $18 )40. Ne3 )Kf8 {[%emt 0:0:9]} (39... Kg7 $17 {( -> ...Qc1+)} 40. Qb2 (40. Nxc8 $2 Qc1+ )Qg2+ (40... Rxc5 $2 41. Rg4+ Kg6 42. Rxg5+ $18 )41. Ke1 Qg1+ (41... Rxc5 42. Rg4+ Kh7 43. Qg7# )42. Kd2 Qxf2+ (42... Rxc5 43. Rg4+ Kh7 44. Qg7# )43. Kc1 Rxc5+ (43... Qxb2+ 44. Kxb2 Rxc5 45. Rf4 $17 )44. Rc4+ Qxb2+ 45. Kxb2 Rd5 )40. Qb2 $2 {[%emt 0:0:9][%mdl 8192]} (40. Nxc8 $2 Qc1+ )(40. Qc4 $15 Rxc5 41. Rf4+ Ke7 42. Nc8+ Rxc8 43. Qb4+ Qc5 44. Qxc5+ Rxc5 45. Rxf3 )Qg2+ $19 {[%emt 0:0:6]} (40... Rxc5 41. Rf4+ (41. Qb8+ $2 Kg7 $19 )Ke7 (41... Qxf4 42. Qb8+ $11 )42. Rxf3 $11 )41. Ke1 {[%emt 0:0:1]} Qg1+ {[%emt 0:0:2]} (41... Rxc5 $2 42. Qb8+ Kg7 43. Qa7+ Kh6 44. Qxc5 $18 )42. Kd2 {[%emt 0:0:1]} Qxf2+ {[%emt 0:0:1]} (42... Rxc5 $2 43. Qb8+ Kg7 44. Qa7+ Kh6 45. Qxc5 $18 )43. Kc3 {[%emt 0:0:3]} Qe3+ {[%emt 0:0:21]} ({Weaker is} 43... Rxc5+ 44. Nc4 Qxb2+ 45. Kxb2 $19 )44. Kc2 {[%emt 0:0:4]} ({Stronger than} 44. Kb4 Rb8+ 45. Nb5 axb5 )Rxc5+ {[%emt 0:0:13]} 45. Kb1 {[%emt 0:0:0]} Qe1+ {[%emt 0:0:4]} 46. Ka2 {[%emt 0:0:1] [#]} Qe2 $2 {[%emt 0:0:4]} ({Wrong is} 46... Bd5+ $2 47. Rxd5 $18 )(46... Ke7 $1 $19 {Strongly threatening ...Bd5+.} 47. Nc4 Bd5 48. Rxd5 Rxd5 49. Qg7+ Kd8 50. Qf8+ Kc7 51. Qe7+ Kc6 52. Qe8+ Kc5 )47. Rd2 $2 {[%emt 0:0:3][%mdl 8192]} (47. Qxe2 $15 Bxe2 48. Re4 )Bd5+ {[%emt 0:0:0]} 48. Ka3 {[%emt 0:0:4]} Qe3+ {[%emt 0:0:2]} 49. Kb4 {[%emt 0:0:1]} a5# {[%emt 0:0:5]} 0-1

[Event "Biel Challengers Blitz 2024"]
[White "Vaishali,Rameshbabu"]
[Black "Bjerre,Jonas Buhl"]
[Site "Biel"]
[Round "2.2"]
[Annotator "TA"]
[Result "1-0"]
[Date "2024.07.21"]
[WhiteElo "2489"]
[BlackElo "2653"]
[PlyCount "79"]
[TimeControl "180+2"]

{[%evp 15,79,4,11,8,20,18,20,20,12,0,17,21,17,13,20,10,16,0,0,0,0,0,0,-6,0,-7,21,0,23,9,27,12,114,53,441,297,297,302,303,307,300,300,419,410,478,465,452,358,340,282,390,0,460,354,386,303,331,329,381,378,1154,1121,1336,1237,2252,2088]} 1. e4 {[%emt 0:0:2]} e5 {[%emt 0:0:1]} 2. Nf3 {[%emt 0:0:1]} Nc6 {[%emt 0:0:1]} 3. Nc3 {[%emt 0:0:2]} Nf6 {[%emt 0:0:5]} 4. Bb5 {[%emt 0:0:1]} Nd4 {[%emt 0:0:10]} 5. O-O {[%emt 0:0:3]} Nxb5 {[%emt 0:0:2]} 6. Nxb5 {[%emt 0:0:2]} c6 {[%emt 0:0:5]} 7. Nc3 {[%emt 0:0:2]} d6 {[%emt 0:0:1]} 8. d4 {[%emt 0:0:11]} Qc7 {[%emt 0:0:1]} 9. a4 {[%emt 0:0:6]} a5 {[%emt 0:0:6]} 10. Bg5 {[%emt 0:0:4]} Be7 {[%emt 0:0:2]} 11. h3 {[%emt 0:0:6] The position is equal.} O-O {[%emt 0:0:4]} 12. d5 {[%emt 0:0:18]} h6 {[%emt 0:0:14]} 13. Bxf6 {[%emt 0:0:7]} Bxf6 {[%emt 0:0:1]} 14. Qd3 {[%emt 0:0:4]} Be7 {[%emt 0:0:4]} 15. Rad1 {[%emt 0:0:4]} Qb6 {[%emt 0:0:5]} 16. b3 {[%emt 0:0:19]} f5 {[%emt 0:0:15]} 17. Rfe1 {[%emt 0:0:37]} Kh8 {[%emt 0:0:12]} 18. exf5 {[%emt 0:0:23]} Bxf5 {[%emt 0:0:1]} 19. Ne4 {[%emt 0:0:1]} Rad8 {[%emt 0:0:22]} 20. Qe3 {[%emt 0:0:18]} Qc7 {[%emt 0:0:24]} 21. c4 {[%emt 0:0:9]} cxd5 {[%emt 0:0:20]} 22. Rxd5 {[%emt 0:0:4]} Be6 $1 {[%emt 0:0:5]} 23. Rd3 {[%emt 0:0:5]} Rf4 {[%emt 0:0:6]} (23... d5 $11 {keeps the balance.} 24. cxd5 Bxd5 (24... Rxd5 25. Rc1 $11 ))24. Red1 {[%emt 0:0:13] Black is on the road to losing.} (24. Nd4 $16 Bg8 25. Nb5 )Qc6 $2 {[%emt 0:0:10][%mdl 8192] [#]} (24... Bf5 $14 25. Nfd2 Bh7 )25. Nxe5 $1 {[%emt 0:0:16][%mdl 512]} dxe5 {[%emt 0:0:19]} 26. Rxd8+ {[%emt 0:0:1]} Kh7 {[%emt 0:0:1] [#]} 27. R8d5 {[%emt 0:0:8]} Bxd5 {[%emt 0:0:8]} 28. Rxd5 {[%emt 0:0:2]} (28. cxd5 Qc2 29. Nc3 Bd6 $11 )Qe6 {[%emt 0:0:15]} 29. Qd3 {[%emt 0:0:4] Nf6+ would kill now.} g6 {[%emt 0:0:5]} 30. g3 {[%emt 0:0:3]} ({Don't do} 30. Rxa5 h5 31. g3 Rf7 )Rf7 {[%emt 0:0:2]} 31. Kg2 {[%emt 0:0:1]} b6 {[%emt 0:0:1]} 32. Rd7 {[%emt 0:0:2]} Qf5 {[%emt 0:0:2]} 33. Rd5 $2 {[%emt 0:0:4]} (33. Rb7 $18 )h5 $2 {[%emt 0:0:1][%mdl 8192]} (33... Qe6 $1 $11 34. Rb5 Kg8 )34. Qe3 {[%emt 0:0:2]} Kg7 {[%emt 0:0:8]} 35. Rd3 {[%emt 0:0:2] Active counter play!} h4 {[%emt 0:0:2]} 36. g4 {[%emt 0:0:1]} Qe6 {[%emt 0:0:0]} 37. Rd5 {[%emt 0:0:2]} Bb4 $2 {[%emt 0:0:3]} (37... Rf4 38. f3 Kg8 )38. Ng5 $18 {[%emt 0:0:3][%csl LRe5,LRe6,LRf7] White is clearly winning.} Qf6 {[%emt 0:0:8]} 39. Nxf7 {[%emt 0:0:1]} Qxf7 {[%emt 0:0:1]} 40. Qxe5+ {[%emt 0:0:2] Weighted Error Value: White=0.45/Black=0.59.  Loses game:     	---       	Black=2      Missed win:     	White=1     	---        Mistake:       	White=1     	Black=2      Inaccurate:     	White=1     	Black=3      OK:         	White=12    	Black=9      Best:        	White=2     	---        Strong:       	---       	Black=1} 1-0

[Event "Biel Challengers Blitz 2024"]
[White "Salem,A.R. Saleh"]
[Black "Donchenko,Alexander"]
[Site "Biel"]
[Round "2.3"]
[Annotator "RC"]
[Result "1-0"]
[Date "2024.07.21"]
[WhiteElo "2638"]
[BlackElo "2639"]
[PlyCount "53"]
[TimeControl "180+2"]

1. d4 {[%emt 0:0:1]} Nf6 {[%emt 0:0:0]} 2. c4 {[%emt 0:0:1]} g6 {[%emt 0:0:1]} 3. Nc3 {[%emt 0:0:3]} Bg7 {[%emt 0:0:1]} 4. e4 {[%emt 0:0:0]} d6 {[%emt 0:0:0]} 5. h3 {[%emt 0:0:1]} e5 {[%emt 0:0:9]} 6. d5 {[%emt 0:0:2]} Nbd7 {[%emt 0:0:3]} 7. Bd3 {[%emt 0:0:7]} Nc5 {[%emt 0:0:4]} 8. Bc2 {[%emt 0:0:0]} a5 {[%emt 0:0:1]} 9. Be3 {[%emt 0:0:2]} h5 {[%emt 0:0:10]} 10. Qd2 {[%emt 0:0:5]} Ng8 {[%emt 0:0:19]} 11. Nge2 {[%emt 0:0:4]} Bh6 {[%emt 0:0:2]} 12. Bxh6 {[%emt 0:0:7]} Nxh6 {[%emt 0:0:2]} 13. O-O-O {[%emt 0:0:4]} Ng8 {[%emt 0:0:44]} 14. f4 {[%emt 0:0:8]} Qe7 {[%emt 0:0:3]} 15. fxe5 {[%emt 0:0:5]} Qxe5 {[%emt 0:0:2]} 16. Nb5 {[%emt 0:0:0]} Na6 {[%emt 0:0:7]} 17. Ned4 {[%emt 0:0:5]} Bd7 {[%emt 0:0:9]} 18. Nf3 {[%emt 0:0:10]} Qg7 {[%emt 0:0:9]} 19. e5 {[%emt 0:0:2]} Bxb5 {[%emt 0:0:18]} 20. cxb5 {[%emt 0:0:4]} Nc5 {[%emt 0:0:1]} 21. Rde1 {[%emt 0:0:4]} O-O-O {[%emt 0:0:38]} 22. Qxa5 {[%emt 0:0:4]} Nh6 {[%emt 0:0:27]} 23. exd6 {[%emt 0:0:2]} cxd6 {[%emt 0:0:9]} 24. b6 {[%emt 0:0:36]} Rde8 {[%emt 0:0:7]} 25. Qa8+ {[%emt 0:0:3]} Kd7 {[%emt 0:0:1]} 26. Ba4+ {[%emt 0:0:0]} Nxa4 {[%emt 0:0:1]} 27. Qxb7+ {[%emt 0:0:1]} 1-0